[Event "Late-Titled-Tuesday-Blitz-April-16-2024"]
[Site "Chess.com"]
[Date "2024.04.16"]
[Round "8"]
[White "Licancabur"]
[Black "azikom"]
[Result "0-1"]
[WhiteElo "2443"]
[BlackElo "2694"]
[TimeControl "180+1"]
[EndTime "15:22:56 PDT"]
[Termination "azikom won by resignation"]

1. d4 {[%clk 0:03:00.9]} 1... d5 {[%clk 0:02:58.6]} 2. Bg5 {[%clk 0:02:58.8]}
2... h6 {[%clk 0:02:57]} 3. Bh4 {[%clk 0:02:57.3]} 3... c6 {[%clk 0:02:57]} 4.
Nf3 {[%clk 0:02:50.8]} 4... Qb6 {[%clk 0:02:56.6]} 5. Qc1 {[%clk 0:02:47.9]}
5... Bf5 {[%clk 0:02:54.1]} 6. e3 {[%clk 0:02:44.7]} 6... e6 {[%clk 0:02:52.8]}
7. Bd3 {[%clk 0:02:40.6]} 7... Bxd3 {[%clk 0:02:49]} 8. cxd3 {[%clk 0:02:40.8]}
8... Nd7 {[%clk 0:02:48.9]} 9. O-O {[%clk 0:02:40]} 9... Ngf6 {[%clk 0:02:47.8]}
10. Nc3 {[%clk 0:02:37.5]} 10... Bd6 {[%clk 0:02:47]} 11. e4 {[%clk 0:02:14.8]}
11... Be7 {[%clk 0:02:41.8]} 12. Re1 {[%clk 0:02:06.4]} 12... Qd8 {[%clk
0:02:37]} 13. h3 {[%clk 0:01:54.3]} 13... O-O {[%clk 0:02:36.4]} 14. Bg3 {[%clk
0:01:46.3]} 14... Re8 {[%clk 0:02:35.5]} 15. Qd2 {[%clk 0:01:43.6]} 15... Rc8
{[%clk 0:02:34.9]} 16. Rac1 {[%clk 0:01:43.2]} 16... Nb6 {[%clk 0:02:22.3]} 17.
Ne5 {[%clk 0:01:40]} 17... c5 {[%clk 0:02:19.3]} 18. dxc5 {[%clk 0:01:36.5]}
18... Bxc5 {[%clk 0:02:17.5]} 19. exd5 {[%clk 0:01:30.5]} 19... Nbxd5 {[%clk
0:02:15.8]} 20. Nxd5 {[%clk 0:01:22.3]} 20... Qxd5 {[%clk 0:02:15]} 21. b4
{[%clk 0:01:06.4]} 21... Bd4 {[%clk 0:02:10.9]} 22. Nc4 {[%clk 0:00:59.5]} 22...
Red8 {[%clk 0:02:09.9]} 23. a3 {[%clk 0:00:52]} 23... b5 {[%clk 0:02:07.2]} 24.
Na5 {[%clk 0:00:47.5]} 24... Bb6 {[%clk 0:02:05.3]} 25. Re5 {[%clk 0:00:32]}
25... Rxc1+ {[%clk 0:02:01.4]} 26. Qxc1 {[%clk 0:00:31.4]} 26... Qxd3 {[%clk
0:02:01.9]} 27. Nc6 {[%clk 0:00:29.5]} 27... Qxg3 {[%clk 0:01:55.2]} 28. Nxd8
{[%clk 0:00:21.7]} 28... Qxe5 {[%clk 0:01:48.3]} 0-1

[Event "Late-Titled-Tuesday-Blitz-April-16-2024"]
[Site "Chess.com"]
[Date "2024.04.16"]
[Round "8"]
[White "alexrustemov"]
[Black "BeanScreen"]
[Result "1-0"]
[WhiteElo "2860"]
[BlackElo "2671"]
[TimeControl "180+1"]
[EndTime "15:22:57 PDT"]
[Termination "alexrustemov won by resignation"]

1. d4 {[%clk 0:03:00.9]} 1... d5 {[%clk 0:03:00.1]} 2. c4 {[%clk 0:03:00.7]}
2... e6 {[%clk 0:03:00.6]} 3. Nc3 {[%clk 0:03:01]} 3... c5 {[%clk 0:03:00.5]} 4.
cxd5 {[%clk 0:03:01]} 4... cxd4 {[%clk 0:03:00.9]} 5. Qxd4 {[%clk 0:03:01.2]}
5... Nc6 {[%clk 0:03:01.2]} 6. Qd1 {[%clk 0:03:01.5]} 6... exd5 {[%clk
0:03:01.6]} 7. Qxd5 {[%clk 0:03:02.4]} 7... Qc7 {[%clk 0:03:00.9]} 8. Nf3 {[%clk
0:03:01.6]} 8... Be6 {[%clk 0:03:00.9]} 9. Qd1 {[%clk 0:02:54]} 9... Nf6 {[%clk
0:02:59.4]} 10. e3 {[%clk 0:02:52.8]} 10... Bb4 {[%clk 0:02:57]} 11. Bd2 {[%clk
0:02:51.6]} 11... Rd8 {[%clk 0:02:55.2]} 12. Qc2 {[%clk 0:02:47.4]} 12... Ne5
{[%clk 0:02:42.9]} 13. Be2 {[%clk 0:02:39.5]} 13... O-O {[%clk 0:02:41.7]} 14.
O-O {[%clk 0:02:21.1]} 14... Rfe8 {[%clk 0:02:34.5]} 15. h3 {[%clk 0:02:13]}
15... b5 {[%clk 0:02:14.4]} 16. Nd4 {[%clk 0:02:07]} 16... Bc4 {[%clk
0:01:30.9]} 17. Ncxb5 {[%clk 0:01:58.4]} 17... Qc5 {[%clk 0:01:22.2]} 18. Bxb4
{[%clk 0:01:56.6]} 18... Qxb4 {[%clk 0:01:22.1]} 19. a3 {[%clk 0:01:55.2]} 19...
Qc5 {[%clk 0:01:19.9]} 20. Rfc1 {[%clk 0:01:50.7]} 20... Rc8 {[%clk 0:01:16.7]}
21. b3 {[%clk 0:01:38.6]} 21... a6 {[%clk 0:01:16.5]} 22. Bxc4 {[%clk
0:01:32.3]} 22... Nxc4 {[%clk 0:01:15.2]} 23. Qxc4 {[%clk 0:01:28.2]} 23... Qxc4
{[%clk 0:01:02]} 24. bxc4 {[%clk 0:01:28.2]} 24... axb5 {[%clk 0:01:02]} 25.
cxb5 {[%clk 0:01:28.8]} 25... Ne4 {[%clk 0:00:49.8]} 26. Rxc8 {[%clk 0:01:25.7]}
26... Rxc8 {[%clk 0:00:49.5]} 27. a4 {[%clk 0:01:25.5]} 27... h5 {[%clk
0:00:35.1]} 28. a5 {[%clk 0:01:25]} 28... Rc5 {[%clk 0:00:34.2]} 29. a6 {[%clk
0:01:24]} 1-0

[Event "Late-Titled-Tuesday-Blitz-April-16-2024"]
[Site "Chess.com"]
[Date "2024.04.16"]
[Round "8"]
[White "GaiozNigalidze"]
[Black "The_Straightforward_Rook"]
[Result "1-0"]
[WhiteElo "2677"]
[BlackElo "2432"]
[TimeControl "180+1"]
[EndTime "15:22:59 PDT"]
[Termination "GaiozNigalidze won by checkmate"]

1. e4 {[%clk 0:03:00.9]} 1... e6 {[%clk 0:02:32.5]} 2. d4 {[%clk 0:02:57.7]}
2... d5 {[%clk 0:02:32.6]} 3. exd5 {[%clk 0:02:58.6]} 3... exd5 {[%clk
0:02:32.3]} 4. Bd3 {[%clk 0:02:58.9]} 4... Bd6 {[%clk 0:02:29.9]} 5. Ne2 {[%clk
0:02:59.1]} 5... Ne7 {[%clk 0:02:28.9]} 6. O-O {[%clk 0:02:59.5]} 6... O-O
{[%clk 0:02:28.8]} 7. c3 {[%clk 0:02:59.1]} 7... Bf5 {[%clk 0:02:27.8]} 8. Bg5
{[%clk 0:02:59]} 8... f6 {[%clk 0:02:25.7]} 9. Bh4 {[%clk 0:02:59]} 9... Qe8
{[%clk 0:02:20.8]} 10. Bg3 {[%clk 0:02:55.6]} 10... Bxg3 {[%clk 0:02:14.9]} 11.
hxg3 {[%clk 0:02:55]} 11... Qg6 {[%clk 0:02:12.2]} 12. Bxf5 {[%clk 0:02:52.6]}
12... Qxf5 {[%clk 0:02:13.1]} 13. Qb3 {[%clk 0:02:52.2]} 13... b6 {[%clk
0:02:10]} 14. Na3 {[%clk 0:02:50]} 14... Nbc6 {[%clk 0:02:09.1]} 15. Nb5 {[%clk
0:02:45.5]} 15... Na5 {[%clk 0:02:05.1]} 16. Qd1 {[%clk 0:02:42]} 16... Qd7
{[%clk 0:02:03.6]} 17. a4 {[%clk 0:02:39.8]} 17... Nc4 {[%clk 0:02:03.3]} 18. b3
{[%clk 0:02:38]} 18... Nd6 {[%clk 0:02:02.6]} 19. Qd3 {[%clk 0:02:38]} 19... c6
{[%clk 0:01:58.3]} 20. Nxd6 {[%clk 0:02:37]} 20... Qxd6 {[%clk 0:01:59.2]} 21.
Nf4 {[%clk 0:02:37.2]} 21... g5 {[%clk 0:01:42.6]} 22. Nh5 {[%clk 0:02:28.8]}
22... Ng6 {[%clk 0:01:40.7]} 23. Rae1 {[%clk 0:02:25.8]} 23... Rae8 {[%clk
0:01:39.6]} 24. Qa6 {[%clk 0:02:15.2]} 24... Re7 {[%clk 0:01:29.5]} 25. a5
{[%clk 0:02:13.2]} 25... bxa5 {[%clk 0:01:16.8]} 26. Rxe7 {[%clk 0:02:01.9]}
26... Nxe7 {[%clk 0:01:10.3]} 27. Qxa7 {[%clk 0:02:01.5]} 27... Rb8 {[%clk
0:00:57]} 28. Re1 {[%clk 0:01:59.7]} 28... Kf7 {[%clk 0:00:56.4]} 29. Rxe7+
{[%clk 0:01:49.6]} 29... Qxe7 {[%clk 0:00:53.6]} 30. Qxb8 {[%clk 0:01:49.5]}
30... Qe1+ {[%clk 0:00:19.5]} 31. Kh2 {[%clk 0:01:47.2]} 31... Qd1 {[%clk
0:00:16.7]} 32. Qc7+ {[%clk 0:01:45.4]} 32... Kg6 {[%clk 0:00:17]} 33. Qg7+
{[%clk 0:01:45.4]} 33... Kxh5 {[%clk 0:00:17]} 34. Qxh7+ {[%clk 0:01:45.8]}
34... Kg4 {[%clk 0:00:17.5]} 35. Qh3# {[%clk 0:01:46.5]} 1-0

[Event "Late-Titled-Tuesday-Blitz-April-16-2024"]
[Site "Chess.com"]
[Date "2024.04.16"]
[Round "8"]
[White "zacachess"]
[Black "LUISMIGUELOV"]
[Result "1/2-1/2"]
[WhiteElo "2349"]
[BlackElo "2193"]
[TimeControl "180+1"]
[EndTime "15:23:08 PDT"]
[Termination "Game drawn by agreement"]

1. e4 {[%clk 0:03:00]} 1... c6 {[%clk 0:02:59.1]} 2. d4 {[%clk 0:02:59]} 2... d5
{[%clk 0:02:59.6]} 3. e5 {[%clk 0:02:58.9]} 3... c5 {[%clk 0:02:59.6]} 4. Nf3
{[%clk 0:02:58.1]} 4... Bg4 {[%clk 0:02:59.3]} 5. dxc5 {[%clk 0:02:57.9]} 5...
Nc6 {[%clk 0:02:58.2]} 6. c3 {[%clk 0:02:58.1]} 6... e6 {[%clk 0:02:56.8]} 7.
Be3 {[%clk 0:02:54.4]} 7... Bxf3 {[%clk 0:02:48.5]} 8. Qxf3 {[%clk 0:02:55.2]}
8... Nxe5 {[%clk 0:02:47.4]} 9. Bb5+ {[%clk 0:02:55.5]} 9... Nc6 {[%clk
0:02:46.7]} 10. O-O {[%clk 0:02:55.8]} 10... Nf6 {[%clk 0:02:46.1]} 11. c4
{[%clk 0:02:53.8]} 11... Be7 {[%clk 0:02:45.4]} 12. Nc3 {[%clk 0:02:52.9]} 12...
O-O {[%clk 0:02:43.1]} 13. cxd5 {[%clk 0:02:52.5]} 13... Nxd5 {[%clk 0:02:43.1]}
14. Nxd5 {[%clk 0:02:50]} 14... Qxd5 {[%clk 0:02:41]} 15. Qxd5 {[%clk
0:02:49.6]} 15... exd5 {[%clk 0:02:41.1]} 16. Rfd1 {[%clk 0:02:46.6]} 16... Rfd8
{[%clk 0:02:36.7]} 17. Rd2 {[%clk 0:02:33.9]} 17... d4 {[%clk 0:02:31.6]} 18.
Bxc6 {[%clk 0:02:29.9]} 18... dxe3 {[%clk 0:02:25.2]} 19. Rxd8+ {[%clk
0:02:27.9]} 19... Rxd8 {[%clk 0:02:24.4]} 20. Bxb7 {[%clk 0:02:27.2]} 20...
exf2+ {[%clk 0:02:23.8]} 21. Kxf2 {[%clk 0:02:26.5]} 21... Bxc5+ {[%clk
0:02:23.9]} 22. Ke2 {[%clk 0:02:26.4]} 22... Rb8 {[%clk 0:02:17.5]} 23. Rc1
{[%clk 0:02:11.8]} 23... Rxb7 {[%clk 0:02:15.2]} 24. Rxc5 {[%clk 0:02:11.8]}
24... Rxb2+ {[%clk 0:02:13.4]} 25. Kf3 {[%clk 0:02:12.2]} 25... g6 {[%clk
0:02:13.6]} 26. Ra5 {[%clk 0:02:11]} 26... Rb7 {[%clk 0:02:12.3]} 27. g4 {[%clk
0:02:10.9]} 27... Kg7 {[%clk 0:02:12.3]} 28. g5 {[%clk 0:02:10.5]} 28... h6
{[%clk 0:02:12.3]} 29. h4 {[%clk 0:02:09.8]} 29... hxg5 {[%clk 0:02:11.7]} 30.
hxg5 {[%clk 0:02:10.7]} 30... f6 {[%clk 0:02:11.2]} 31. Kf4 {[%clk 0:02:05.4]}
31... fxg5+ {[%clk 0:01:57]} 32. Kxg5 {[%clk 0:02:06.3]} 32... Kf7 {[%clk
0:01:51.6]} 33. Ra6 {[%clk 0:02:04.3]} 33... Rb5+ {[%clk 0:01:47.8]} 34. Kf4
{[%clk 0:02:04.7]} 34... Rb7 {[%clk 0:01:45.7]} 35. Kg5 {[%clk 0:02:03.6]} 35...
Ke7 {[%clk 0:01:25.5]} 36. Rxg6 {[%clk 0:01:43.5]} 36... Rb5+ {[%clk 0:01:25.1]}
37. Kf4 {[%clk 0:01:43.1]} 37... Ra5 {[%clk 0:01:25]} 38. Rg2 {[%clk 0:01:41.9]}
38... Kd6 {[%clk 0:01:23.8]} 39. Rc2 {[%clk 0:01:36.2]} 39... Kd5 {[%clk
0:01:20.1]} 40. Ke3 {[%clk 0:01:35.9]} 40... Ra3+ {[%clk 0:01:19.7]} 41. Kd2
{[%clk 0:01:35.8]} 41... Kd4 {[%clk 0:01:19.2]} 42. Kc1 {[%clk 0:01:35.2]} 42...
Kd3 {[%clk 0:01:18.5]} 43. Rh2 {[%clk 0:01:31.6]} 43... Kc3 {[%clk 0:01:16.9]}
44. Rh3+ {[%clk 0:01:28.1]} 44... Kb4 {[%clk 0:01:16.7]} 45. Rxa3 {[%clk
0:01:24]} 45... Kxa3 {[%clk 0:01:16]} 46. Kb1 {[%clk 0:01:24.4]} 1/2-1/2

[Event "Late-Titled-Tuesday-Blitz-April-16-2024"]
[Site "Chess.com"]
[Date "2024.04.16"]
[Round "8"]
[White "ChessBrainiacOnTwitch"]
[Black "Oleg_Papayan"]
[Result "1-0"]
[WhiteElo "2833"]
[BlackElo "2678"]
[TimeControl "180+1"]
[EndTime "15:23:13 PDT"]
[Termination "ChessBrainiacOnTwitch won by resignation"]

1. e4 {[%clk 0:02:59.4]} 1... d5 {[%clk 0:03:00.6]} 2. exd5 {[%clk 0:02:56.1]}
2... Qxd5 {[%clk 0:03:01.5]} 3. Nc3 {[%clk 0:02:52]} 3... Qd8 {[%clk 0:03:01.9]}
4. d4 {[%clk 0:02:52.3]} 4... c6 {[%clk 0:03:02.6]} 5. Bc4 {[%clk 0:02:51.9]}
5... Nf6 {[%clk 0:03:01.3]} 6. Nf3 {[%clk 0:02:52]} 6... Bf5 {[%clk 0:03:01.2]}
7. Ne5 {[%clk 0:02:51.6]} 7... e6 {[%clk 0:02:56.4]} 8. g4 {[%clk 0:02:47.6]}
8... Bg6 {[%clk 0:02:56.9]} 9. h4 {[%clk 0:02:43.3]} 9... Be4 {[%clk 0:02:43.3]}
10. Nxe4 {[%clk 0:02:19.1]} 10... Nxe4 {[%clk 0:02:44.2]} 11. Qf3 {[%clk
0:02:19.8]} 11... Nd6 {[%clk 0:02:44.4]} 12. Bb3 {[%clk 0:02:14.1]} 12... Nd7
{[%clk 0:02:37.3]} 13. Bf4 {[%clk 0:01:33.6]} 13... Nxe5 {[%clk 0:02:22.8]} 14.
Bxe5 {[%clk 0:01:34.5]} 14... Qd7 {[%clk 0:02:01.9]} 15. O-O-O {[%clk
0:01:30.5]} 15... O-O-O {[%clk 0:02:01.9]} 16. c4 {[%clk 0:01:28.1]} 16... Ne8
{[%clk 0:01:21]} 17. Kb1 {[%clk 0:01:24.4]} 17... Bd6 {[%clk 0:01:20]} 18. c5
{[%clk 0:01:07.2]} 18... Bxe5 {[%clk 0:01:08.5]} 19. dxe5 {[%clk 0:01:08.1]}
19... Qc7 {[%clk 0:01:09.2]} 20. Rxd8+ {[%clk 0:01:07.4]} 20... Kxd8 {[%clk
0:01:10.1]} 21. Rd1+ {[%clk 0:01:03.1]} 21... Kc8 {[%clk 0:01:10.1]} 22. Qe3
{[%clk 0:01:03.6]} 22... Qe7 {[%clk 0:01:06.4]} 23. g5 {[%clk 0:01:02.2]} 23...
Nc7 {[%clk 0:01:03.5]} 24. f4 {[%clk 0:01:00.6]} 24... Rd8 {[%clk 0:01:01.8]}
25. Rd6 {[%clk 0:01:00.6]} 25... Nb5 {[%clk 0:01:00.5]} 26. a4 {[%clk
0:00:58.6]} 26... Nxd6 {[%clk 0:01:00]} 27. cxd6 {[%clk 0:00:59.1]} 27... Qd7
{[%clk 0:00:59]} 28. Qxa7 {[%clk 0:00:59.1]} 1-0

[Event "Late-Titled-Tuesday-Blitz-April-16-2024"]
[Site "Chess.com"]
[Date "2024.04.16"]
[Round "8"]
[White "TiagoMangialardo"]
[Black "schachsensei_YT"]
[Result "0-1"]
[WhiteElo "2061"]
[BlackElo "2287"]
[TimeControl "180+1"]
[EndTime "15:23:20 PDT"]
[Termination "schachsensei_YT won on time"]

1. e4 {[%clk 0:02:59.4]} 1... c5 {[%clk 0:03:00.2]} 2. Nf3 {[%clk 0:02:59.6]}
2... d6 {[%clk 0:03:00.8]} 3. Bb5+ {[%clk 0:02:59.8]} 3... Nd7 {[%clk
0:03:00.2]} 4. a4 {[%clk 0:02:59.6]} 4... g6 {[%clk 0:03:00.2]} 5. O-O {[%clk
0:02:58]} 5... Bg7 {[%clk 0:03:00.8]} 6. h3 {[%clk 0:02:58.5]} 6... Nf6 {[%clk
0:03:01.2]} 7. Qe2 {[%clk 0:02:57.5]} 7... O-O {[%clk 0:03:01.4]} 8. c3 {[%clk
0:02:57.9]} 8... a6 {[%clk 0:03:01.4]} 9. Bc4 {[%clk 0:02:58.3]} 9... b6 {[%clk
0:02:58.4]} 10. d4 {[%clk 0:02:51.9]} 10... cxd4 {[%clk 0:02:57.4]} 11. cxd4
{[%clk 0:02:52.8]} 11... Bb7 {[%clk 0:02:57.6]} 12. Nc3 {[%clk 0:02:42.8]} 12...
e6 {[%clk 0:02:52.4]} 13. Bg5 {[%clk 0:02:41.4]} 13... Qc7 {[%clk 0:02:50.3]}
14. Rac1 {[%clk 0:02:38.1]} 14... Rfc8 {[%clk 0:02:48.7]} 15. e5 {[%clk
0:01:38.3]} 15... dxe5 {[%clk 0:02:33.6]} 16. Nxe5 {[%clk 0:01:19.8]} 16... Nxe5
{[%clk 0:02:31.8]} 17. dxe5 {[%clk 0:01:19.8]} 17... Qxc4 {[%clk 0:02:28.2]} 18.
exf6 {[%clk 0:01:04.3]} 18... Bf8 {[%clk 0:02:17.9]} 19. Be3 {[%clk 0:00:24.9]}
19... Qh4 {[%clk 0:01:58.1]} 20. Bxb6 {[%clk 0:00:17.6]} 20... Qxf6 {[%clk
0:01:57.7]} 21. Rfd1 {[%clk 0:00:15.9]} 21... Qg5 {[%clk 0:01:37.3]} 22. f3
{[%clk 0:00:05.8]} 22... Bc5+ {[%clk 0:01:29.6]} 23. Bxc5 {[%clk 0:00:05.9]}
23... Rxc5 {[%clk 0:01:30.5]} 24. h4 {[%clk 0:00:01.9]} 24... Qxh4 {[%clk
0:01:21.4]} 25. Ne4 {[%clk 0:00:02.3]} 25... Rh5 {[%clk 0:01:21.2]} 0-1

[Event "Late-Titled-Tuesday-Blitz-April-16-2024"]
[Site "Chess.com"]
[Date "2024.04.16"]
[Round "8"]
[White "Allion2017"]
[Black "SmirnovTimofey2000"]
[Result "1-0"]
[WhiteElo "2263"]
[BlackElo "1985"]
[TimeControl "180+1"]
[EndTime "15:23:31 PDT"]
[Termination "Allion2017 won on time"]

1. d4 {[%clk 0:03:00.9]} 1... d5 {[%clk 0:01:20.1]} 2. e4 {[%clk 0:02:44.6]}
2... dxe4 {[%clk 0:01:19]} 3. Nc3 {[%clk 0:02:45.1]} 3... Nf6 {[%clk 0:01:18.4]}
4. Bg5 {[%clk 0:02:45]} 4... Bf5 {[%clk 0:01:12.1]} 5. Qe2 {[%clk 0:02:44]} 5...
e6 {[%clk 0:01:00.2]} 6. O-O-O {[%clk 0:02:35.8]} 6... Be7 {[%clk 0:00:58.7]} 7.
f3 {[%clk 0:02:29.5]} 7... exf3 {[%clk 0:00:57.8]} 8. Nxf3 {[%clk 0:02:30.1]}
8... O-O {[%clk 0:00:57]} 9. h3 {[%clk 0:02:27.8]} 9... h6 {[%clk 0:00:56.4]}
10. Bd2 {[%clk 0:02:23.3]} 10... c6 {[%clk 0:00:54.4]} 11. g4 {[%clk 0:02:23.8]}
11... Bh7 {[%clk 0:00:53.7]} 12. g5 {[%clk 0:02:22.7]} 12... Nd5 {[%clk
0:00:53.3]} 13. gxh6 {[%clk 0:02:19.5]} 13... Bf6 {[%clk 0:00:32.3]} 14. Rg1
{[%clk 0:02:15.6]} 14... Bg6 {[%clk 0:00:31.3]} 15. Ne4 {[%clk 0:02:05.6]} 15...
gxh6 {[%clk 0:00:27.7]} 16. Nxf6+ {[%clk 0:01:57.8]} 16... Qxf6 {[%clk
0:00:25.6]} 17. Ne5 {[%clk 0:01:51.8]} 17... Nf4 {[%clk 0:00:17]} 18. Qg4 {[%clk
0:01:42.1]} 18... Qf5 {[%clk 0:00:15.9]} 19. Qxf5 {[%clk 0:01:26.2]} 19... exf5
{[%clk 0:00:16.8]} 20. Bxf4 {[%clk 0:01:25.3]} 20... Kh7 {[%clk 0:00:14]} 21.
Bc4 {[%clk 0:01:05.8]} 1-0

[Event "Late-Titled-Tuesday-Blitz-April-16-2024"]
[Site "Chess.com"]
[Date "2024.04.16"]
[Round "8"]
[White "dennisodessa"]
[Black "Rutricks"]
[Result "1-0"]
[WhiteElo "2557"]
[BlackElo "2666"]
[TimeControl "180+1"]
[EndTime "15:23:35 PDT"]
[Termination "dennisodessa won by resignation"]

1. d4 {[%clk 0:03:00.1]} 1... g6 {[%clk 0:02:56.9]} 2. c4 {[%clk 0:02:58.3]}
2... Bg7 {[%clk 0:02:57.5]} 3. Nc3 {[%clk 0:02:58.5]} 3... d6 {[%clk 0:02:58.2]}
4. e4 {[%clk 0:02:58.5]} 4... Nd7 {[%clk 0:02:58.8]} 5. Be3 {[%clk 0:02:58.4]}
5... e5 {[%clk 0:02:59.3]} 6. d5 {[%clk 0:02:59]} 6... a5 {[%clk 0:03:00]} 7.
Bd3 {[%clk 0:02:59]} 7... h5 {[%clk 0:03:00.6]} 8. f3 {[%clk 0:02:56.6]} 8...
Nc5 {[%clk 0:03:01.1]} 9. Bc2 {[%clk 0:02:56.7]} 9... Bh6 {[%clk 0:03:00.6]} 10.
Bxh6 {[%clk 0:02:50.9]} 10... Nxh6 {[%clk 0:03:01.5]} 11. Nge2 {[%clk
0:02:51.4]} 11... Qg5 {[%clk 0:03:01.3]} 12. O-O {[%clk 0:02:47.7]} 12... h4
{[%clk 0:03:01.5]} 13. Qc1 {[%clk 0:02:46.5]} 13... Qe7 {[%clk 0:03:00.5]} 14.
b3 {[%clk 0:02:33.2]} 14... Bd7 {[%clk 0:02:52.7]} 15. a3 {[%clk 0:02:33.6]}
15... f5 {[%clk 0:02:49.1]} 16. b4 {[%clk 0:02:30.6]} 16... Na6 {[%clk
0:02:46.9]} 17. f4 {[%clk 0:02:19.3]} 17... h3 {[%clk 0:02:40.4]} 18. g3 {[%clk
0:02:17.1]} 18... Ng4 {[%clk 0:02:40.1]} 19. fxe5 {[%clk 0:02:13]} 19... Qxe5
{[%clk 0:02:32.3]} 20. Qg5 {[%clk 0:02:12.8]} 20... Rh6 {[%clk 0:01:59.1]} 21.
Rf4 {[%clk 0:01:39.6]} 21... Qh8 {[%clk 0:01:40.2]} 22. exf5 {[%clk 0:01:31.6]}
22... gxf5 {[%clk 0:01:41.1]} 23. Bxf5 {[%clk 0:01:28.8]} 23... Bxf5 {[%clk
0:01:40.7]} 24. Rxf5 {[%clk 0:01:12.6]} 24... Ne5 {[%clk 0:01:32.2]} 25. Raf1
{[%clk 0:01:12.7]} 25... Kd7 {[%clk 0:01:21.6]} 26. Rxe5 {[%clk 0:00:49.8]}
26... dxe5 {[%clk 0:01:06.9]} 27. Rf7+ {[%clk 0:00:48.9]} 27... Kc8 {[%clk
0:01:04.9]} 28. Qf5+ {[%clk 0:00:49]} 28... Kb8 {[%clk 0:01:04.6]} 29. Rf8+
{[%clk 0:00:49.7]} 29... Ka7 {[%clk 0:01:03.4]} 30. Rxh8 {[%clk 0:00:50.4]}
30... Raxh8 {[%clk 0:01:03.5]} 31. Qxe5 {[%clk 0:00:37.6]} 31... axb4 {[%clk
0:01:03.4]} 32. axb4 {[%clk 0:00:38.3]} 32... Rf8 {[%clk 0:01:02.5]} 33. Qe3+
{[%clk 0:00:29.7]} 33... Kb8 {[%clk 0:01:02.5]} 34. Qxh6 {[%clk 0:00:29.5]} 1-0

[Event "Late-Titled-Tuesday-Blitz-April-16-2024"]
[Site "Chess.com"]
[Date "2024.04.16"]
[Round "8"]
[White "Anton_Demchenko"]
[Black "lamomiajunior"]
[Result "1-0"]
[WhiteElo "2963"]
[BlackElo "2732"]
[TimeControl "180+1"]
[EndTime "15:23:36 PDT"]
[Termination "Anton_Demchenko won by checkmate"]

1. e4 {[%clk 0:03:00.9]} 1... c5 {[%clk 0:03:00.1]} 2. Nc3 {[%clk 0:02:58.8]}
2... d6 {[%clk 0:02:59]} 3. Bb5+ {[%clk 0:02:55.2]} 3... Bd7 {[%clk 0:02:48.1]}
4. a4 {[%clk 0:02:55.7]} 4... Nc6 {[%clk 0:02:47.3]} 5. f4 {[%clk 0:02:55.3]}
5... g6 {[%clk 0:02:47.4]} 6. Nf3 {[%clk 0:02:55.5]} 6... Bg7 {[%clk 0:02:47.9]}
7. d3 {[%clk 0:02:55.9]} 7... e6 {[%clk 0:02:46.8]} 8. Bxc6 {[%clk 0:02:55.5]}
8... Bxc6 {[%clk 0:02:45.7]} 9. O-O {[%clk 0:02:56.3]} 9... Ne7 {[%clk
0:02:45.8]} 10. Qe1 {[%clk 0:02:52.8]} 10... Qd7 {[%clk 0:02:34.4]} 11. Be3
{[%clk 0:02:48.4]} 11... b6 {[%clk 0:02:32.8]} 12. Qh4 {[%clk 0:02:29.9]} 12...
O-O-O {[%clk 0:02:08.5]} 13. a5 {[%clk 0:02:25.9]} 13... b5 {[%clk 0:02:07.9]}
14. Qf2 {[%clk 0:02:08.8]} 14... a6 {[%clk 0:02:03.1]} 15. Rab1 {[%clk
0:02:00.2]} 15... h6 {[%clk 0:01:52.7]} 16. Ne2 {[%clk 0:01:59.5]} 16... f5
{[%clk 0:01:45.8]} 17. Ng3 {[%clk 0:01:56.2]} 17... Rdf8 {[%clk 0:01:38]} 18. b4
{[%clk 0:01:50.8]} 18... cxb4 {[%clk 0:01:35.6]} 19. Rxb4 {[%clk 0:01:51.3]}
19... g5 {[%clk 0:01:33.7]} 20. Nh5 {[%clk 0:01:44.1]} 20... Bc3 {[%clk
0:01:23.7]} 21. Rb3 {[%clk 0:01:44.8]} 21... b4 {[%clk 0:01:15.8]} 22. Bd4
{[%clk 0:01:45.2]} 22... fxe4 {[%clk 0:00:53.6]} 23. dxe4 {[%clk 0:01:35.3]}
23... Rhg8 {[%clk 0:00:47.8]} 24. Bxc3 {[%clk 0:01:32.3]} 24... bxc3 {[%clk
0:00:48.7]} 25. Rfb1 {[%clk 0:01:31.2]} 25... Bb5 {[%clk 0:00:42.6]} 26. Rxc3+
{[%clk 0:01:28.2]} 26... Kd8 {[%clk 0:00:43]} 27. Qb6+ {[%clk 0:01:19.4]} 27...
Ke8 {[%clk 0:00:43.2]} 28. Rc7 {[%clk 0:01:20.2]} 28... Qd8 {[%clk 0:00:43.4]}
29. Rxb5 {[%clk 0:01:09.5]} 29... axb5 {[%clk 0:00:42.4]} 30. Nd4 {[%clk
0:01:05.6]} 30... Rf7 {[%clk 0:00:19.3]} 31. Qxb5+ {[%clk 0:01:01.2]} 31... Kf8
{[%clk 0:00:19.5]} 32. Nxe6# {[%clk 0:01:01.7]} 1-0

[Event "Late-Titled-Tuesday-Blitz-April-16-2024"]
[Site "Chess.com"]
[Date "2024.04.16"]
[Round "8"]
[White "FairChess_on_YouTube"]
[Black "TanitoluwaAps116"]
[Result "1-0"]
[WhiteElo "3081"]
[BlackElo "2791"]
[TimeControl "180+1"]
[EndTime "15:23:45 PDT"]
[Termination "FairChess_on_YouTube won by resignation"]

1. e4 {[%clk 0:03:00.9]} 1... c5 {[%clk 0:02:52.5]} 2. Nc3 {[%clk 0:02:59.6]}
2... Nc6 {[%clk 0:02:52.2]} 3. Nge2 {[%clk 0:02:59.5]} 3... Nf6 {[%clk
0:02:49.5]} 4. d4 {[%clk 0:02:59.6]} 4... cxd4 {[%clk 0:02:49.7]} 5. Nxd4 {[%clk
0:03:00.5]} 5... e6 {[%clk 0:02:50.3]} 6. a3 {[%clk 0:02:58.5]} 6... d5 {[%clk
0:02:49.4]} 7. exd5 {[%clk 0:02:47.8]} 7... Nxd5 {[%clk 0:02:50.3]} 8. Nxd5
{[%clk 0:02:40.1]} 8... Qxd5 {[%clk 0:02:51.2]} 9. Nb5 {[%clk 0:02:33.9]} 9...
Qxd1+ {[%clk 0:02:14]} 10. Kxd1 {[%clk 0:02:34.8]} 10... Kd8 {[%clk 0:02:10.6]}
11. Be3 {[%clk 0:02:29.4]} 11... Bd7 {[%clk 0:02:03.7]} 12. Kc1 {[%clk
0:02:25.1]} 12... a6 {[%clk 0:01:57.2]} 13. Bb6+ {[%clk 0:02:23.5]} 13... Kc8
{[%clk 0:01:57.6]} 14. Nc3 {[%clk 0:02:23.4]} 14... Bd6 {[%clk 0:01:55]} 15. g3
{[%clk 0:02:21.9]} 15... Bc7 {[%clk 0:01:52.7]} 16. Be3 {[%clk 0:02:20]} 16...
Ne5 {[%clk 0:01:52.6]} 17. Bg2 {[%clk 0:02:16.4]} 17... Bc6 {[%clk 0:01:53.5]}
18. Bxc6 {[%clk 0:02:15.2]} 18... Nxc6 {[%clk 0:01:54.4]} 19. Rd1 {[%clk
0:02:14.8]} 19... Rd8 {[%clk 0:01:53.9]} 20. Ne4 {[%clk 0:02:13.9]} 20... Rxd1+
{[%clk 0:01:52.5]} 21. Kxd1 {[%clk 0:02:14.8]} 21... Kd7 {[%clk 0:01:29.6]} 22.
Ke2 {[%clk 0:02:11.9]} 22... Rd8 {[%clk 0:01:13.8]} 23. Rd1+ {[%clk 0:02:06.3]}
23... Ke7 {[%clk 0:01:07.6]} 24. Bc5+ {[%clk 0:01:55]} 24... Ke8 {[%clk
0:01:05.6]} 25. Bd6 {[%clk 0:01:55.3]} 25... Bxd6 {[%clk 0:00:48.9]} 26. Nxd6+
{[%clk 0:01:53.7]} 26... Ke7 {[%clk 0:00:48.7]} 27. Nxb7 {[%clk 0:01:40.8]}
27... Rb8 {[%clk 0:00:48]} 28. Rd6 {[%clk 0:01:41.1]} 28... Rc8 {[%clk
0:00:14.8]} 29. c4 {[%clk 0:01:14.7]} 29... Na5 {[%clk 0:00:10.9]} 30. Rxa6
{[%clk 0:01:10.8]} 30... Nxc4 {[%clk 0:00:11.1]} 31. b4 {[%clk 0:01:07.8]} 31...
Rd8 {[%clk 0:00:06.2]} 32. Nxd8 {[%clk 0:01:07.6]} 1-0